Cogmind - Beta 14 @@@ ROGUE MODE // 2024.09.11 @ 21:57:21 Player: Maienne du Crabe Result: Destroyed by G-47 Trooper with Particle Gun Performance ------------- Evolutions (2) 1000 Regions Visited (3) 600 Robots Destroyed (34) 170 Value Destroyed (932) 932 Prototype IDs (2) 40 Alien Tech Used (0) 0 Bonus (22) 22 TOTAL SCORE: 2764 Bonus ------- High Alert Combat Kills 22 Cogmind --------- Core Integrity 0/550 Matter 271/300 Energy 52/125 System Corruption 8% Temperature Cool (17) Movement Rolling (80) Location -8/Materials Parts ------- > --- POWER (1) -------- Light Ion Engine > --- PROPULSION (4) --- Aluminum Leg Wheel > --- UTILITY (4) ------ Improved Melee Analysis Suite Improved Melee Analysis Suite Improved Melee Analysis Suite Target Analyzer > --- WEAPON (2) ------- Particle Cannon > --- INVENTORY (5) ---- Signal Interpreter Improved Terrain Scanner Terrain Scan Processor Improved Melee Analysis Suite Layered Light Armor Plating Peak State ------------ > --- POWER ------------ Light Nuclear Core > --- PROPULSION ------- Aluminum Leg Aluminum Leg Aluminum Leg Carbon-fiber Leg > --- UTILITY ---------- Improved Melee Analysis Suite Improved Melee Analysis Suite Improved Melee Analysis Suite Layered Light Armor Plating > --- WEAPON ----------- Arc Projector Mace > --- INVENTORY -------- Signal Interpreter Improved Terrain Scanner Terrain Scan Processor Improved Melee Analysis Suite [Rating: 32] Favorites ----------- Power Ion Engine Engine Ion Engine Power Core Light Nuclear Core Propulsion Improved Hover Unit Treads Light Treads Leg Aluminum Leg Wheel Wheel Hover Unit Improved Hover Unit Utility Improved Melee Analysis Suite Device Improved Terrain Scanner Storage Small Storage Unit Processor Improved Melee Analysis Suite Hackware Hacking Suite Protection Layered Light Armor Plating Weapon Mace Energy Gun Arc Projector Energy Cannon Particle Cannon Ballistic Gun Light Assault Rifle Impact Weapon Mace Special Melee Weapon Datajack Build | -11 -10 -9 -8 ------- Run | Yrd Mat Mat Mat Slots Evolved 4 | . . 2 2 Power . | . . . . Propulsion 2 | . . 1 1 Utility 2 | . . 1 1 Weapon . | . . . . Parts Attached 46 | 7 9 10 20 Power 5 | 1 1 1 2 Engine 4 | 1 1 1 1 Core 1 | . . . 1 Reactor . | . . . . Propulsion 14 | 2 4 1 7 Treads 1 | . . . 1 Leg 7 | 2 . . 5 Wheel 2 | . . 1 1 Hover 4 | . 4 . . Flight . | . . . . Utility 16 | 2 . 6 8 Device 3 | 1 . 2 . Storage 1 | 1 . . . Processor 6 | . . 2 4 Hackware 1 | . . 1 . Protection 5 | . . 1 4 Artifact . | . . . . Weapon 11 | 2 4 2 3 Energy Gun 4 | 1 . 1 2 Energy Cannon 1 | . . . 1 Ballistic Gun 1 | 1 . . . Ballistic Cannon . | . . . . Launcher . | . . . . Special Weapon . | . . . . Impact Weapon 4 | . 4 . . Slashing Weapon . | . . . . Piercing Weapon . | . . . . Special Melee Weapon 1 | . . 1 . Unidentified Prototypes . | . . . . Parts Lost 16 | . 2 2 12 Power 2 | . . . 2 Propulsion 9 | . 2 1 6 Utility 2 | . . 1 1 Weapon 3 | . . . 3 Highest Loss Streak 6 | . 2 1 6 To Critical Strikes 1 | . . . 1 Average Slot Usage (%) 86 | . 99 89 77 Engine 8 | . 14 11 3 Core 1 | . . . 3 Leg 8 | . 6 . 15 Hover 13 | . 21 22 4 Device 8 | . 14 11 3 Storage 4 | . 14 . . Processor 14 | . . 12 24 Hackware 3 | . . 6 3 Protection 1 | . . . 2 Energy Gun 2 | . 2 . 2 Ballistic Gun 1 | . 7 . . Impact Weapon 12 | . 18 15 7 Special Melee Weapon 3 | . . 6 3 Peak Build Rating 32 | 9 13 18 32 Average Rating 17 | 5 11 15 23 On Entrance 9 | . 9 13 17 Naked Turns . | . . . . Heaviest Build 15 | 13 15 15 15 Greatest Support 45 | 20 20 20 45 Greatest Overweight (x) 3 | 3 1 1 1 Average Overweight (x) . | . . . . Largest Inventory Capacity 8 | 8 8 8 5 Average Capacity 5 | 7 8 5 5 Most Carried 8 | 4 8 6 5 Average Carried 4 | 1 5 4 4 Final Capacity 8 | 8 8 5 5 Final Carried 6 | 3 6 5 5 Class Distribution -------------------- 51% | Mutant 43% | Scavenger-Mutant 5% | Scout Dominant Class ---------------- Mutant | -10/Materials Scavenger-Mutant | -9/Materials Scavenger-Mutant | -8/Materials Resources | -11 -10 -9 -8 ----------- Run | Yrd Mat Mat Mat Matter Collected 650 | 230 120 97 203 Remotely . | . . . . Salvage Created 1360 | 15 120 458 767 Parts 43 | 2 5 13 23 Haulers Intercepted 1 | . . 1 . Recyclers Shooed . | . . . . Parts Field Recycled . | . . . . Retrieved Matter . | . . . . Parts Self-Destructed . | . . . . Prevented . | . . . . Kills | -11 -10 -9 -8 ------- Run | Yrd Mat Mat Mat Combat Hostiles Destroyed 23 | . 4 7 12 Melee 13 | . 4 4 5 Cannons 4 | . . . 4 Classes Destroyed 10 | 1 4 4 1 Worker 2 | . 1 . 1 Builder 4 | . 1 2 1 Tunneler 1 | 1 . . . Hauler 1 | . . 1 . Recycler 2 | . . 1 1 Operator 1 | . . 1 . Swarmer 3 | . 3 . . Grunt 12 | . 1 5 6 Brawler 1 | . . . 1 Sentry 7 | . . 2 5 Best Kill Streak 5 | 1 2 5 4 Combat Bots Only 4 | . 2 4 4 Max Kills in Single Turn 1 | 1 1 1 1 Gunslinging . | . . . . Exploded . | . . . . Melee 1 | . 1 1 1 Uniques/NPCs Destroyed . | . . . . Combat | -11 -10 -9 -8 -------- Run | Yrd Mat Mat Mat Hostile Shots Fired 189 | . 43 27 119 Missed 48 | . 8 12 28 Damage Taken 2107 | . 307 260 1540 Core 682 | . 67 65 550 Absorbed by Shields . | . . . . Core Remaining (%) 85 | 100 73 83 . Volleys Fired 38 | 1 1 1 35 Largest 2 | 2 1 1 2 Hottest 137 | 60 20 45 137 Shots Fired 43 | 2 1 1 39 Gun 15 | 2 1 1 11 Cannon 28 | . . . 28 Launcher . | . . . . Special . | . . . . Kinetic 2 | 1 1 . . Thermal 34 | 1 . . 33 Explosive . | . . . . Electromagnetic 7 | . . 1 6 Robot Hit Streak 5 | 1 . 2 5 Robot Miss Streak 3 | . . . 3 Penetration Max . | . . . . Secondary Targets . | . . . . Shots Hit Robots 72 | 1 11 20 40 Core Hits 23 | 1 2 3 17 Critical Kills 4 | . . . 4 Critical Parts Destroyed 12 | . 2 6 4 Critical Strikes 17 | . 2 6 9 Burn 1 | . . . 1 Smash 16 | . 2 6 8 Melee Attacks 84 | . 31 27 26 Impact 83 | . 31 26 26 Slashing . | . . . . Piercing . | . . . . Sneak Attacks 8 | . 2 5 1 Combat Hostiles 1 | . . 1 . Follow-up Attacks 1 | . 1 . . Damage Inflicted 2180 | 10 370 709 1091 Guns 116 | 10 . 18 88 Cannons 328 | . . . 328 Explosions 39 | . . . 39 Melee 1697 | . 370 691 636 Ramming . | . . . . Kinetic . | . . . . Thermal 452 | 10 . . 442 Explosive . | . . . . Electromagnetic 31 | . . 18 13 Impact 1697 | . 370 691 636 Slashing . | . . . . Piercing . | . . . . Highest Corruption 8 | . 1 2 8 Average Corruption 3 | . 1 2 7 Corruption Purged . | . . . . Corruption Blocked . | . . . . Effects 5 | . . 1 4 Message Errors 2 | . . . 2 Matter Fused 1 | . . . 1 Data Loss (minor) 1 | . . 1 . Weapon Failures 1 | . . . 1 Overload Shots . | . . . . Overflow Damage 632 | . 106 347 179 Projectiles . | . . . . Explosions . | . . . . Melee 632 | . 106 347 179 Knockbacks 10 | . 4 5 1 Impact 9 | . 3 5 1 Kinetic . | . . . . Secondary 1 | . 1 . . Self-Inflicted Damage 32 | . . . 32 Shots 1 | . . . 1 Rammed . | . . . . Targets Rammed . | . . . . Kicked . | . . . . Crushed . | . . . . Highest Temperature 447 | 20 2 2 447 Average Temperature 195 | 15 2 1 204 Received Heat Transfer 816 | . 18 96 702 Effects 4 | . . . 4 Matter Decay 1 | . . . 1 Damage (major) 3 | . . . 3 Siege Activations . | . . . . Robots Corrupted 11 | . 2 6 3 Combat Hostiles 6 | . . 3 3 Parts Fried 22 | . 4 13 5 Impact Corruptions 24 | . 6 12 6 Robots Melted . | . . . . Combat Hostiles . | . . . . Parts Melted 1 | . . . 1 Heat Transferred 839 | 25 . . 814 Parts Sabotaged . | . . . . Parts Stolen . | . . . . Parts Stripped . | . . . . Power Chain Reactions 1 | . . . 1 Alert | -11 -10 -9 -8 ------- Run | Yrd Mat Mat Mat Peak Influence 459 | 5 134 372 459 Initial 156 | . 3 56 156 Average 170 | 2 46 152 274 Maximum Alert Level 2 | . . 1 2 Low Security (%) 63 | 100 100 67 36 Level 1 31 | . . 32 54 Level 2 4 | . . . 9 Level 3 . | . . . . Level 4 . | . . . . Level 5 . | . . . . High Security . | . . . . Max Security . | . . . . Squads Dispatched 3 | . 1 2 . Investigation 3 | . 1 2 . Extermination . | . . . . Reinforcement . | . . . . Assault . | . . . . Garrison . | . . . . Intercept . | . . . . Searches Triggered . | . . . . Construction Impeded . | . . . . Haulers Reinforced . | . . . . Active Scanning Responses . | . . . . Cargo Convoy Interrupts . | . . . . Stealth | -11 -10 -9 -8 --------- Run | Yrd Mat Mat Mat Distress Signals . | . . . . Communications Jammed . | . . . . Distress Signals . | . . . . Times Spotted 34 | . 4 12 18 Peak Tracking Total 5 | . 3 4 5 Tactical Retreats 3 | . . 2 1 Traps | -11 -10 -9 -8 ------- Run | Yrd Mat Mat Mat Traps Triggered 1 | . 1 . . Indirectly . | . . . . Trap Hack Attempts . | . . . . Triggered . | . . . . Disarmed . | . . . . Reprogrammed 1 | . . 1 . Reused . | . . . . Traps Extracted . | . . . . Installed . | . . . . Triggered . | . . . . Machines | -11 -10 -9 -8 ---------- Run | Yrd Mat Mat Mat Machines Disabled . | . . . . Max in Single Turn . | . . . . Machines Repaired . | . . . . Machines Dismantled . | . . . . Machines Sabotaged . | . . . . Overloaded Fab Kills . | . . . . Hacking | -11 -10 -9 -8 --------- Run | Yrd Mat Mat Mat Machines Accessed 7 | . 2 5 . Terminals 7 | . 2 5 . Fabricators . | . . . . Repair Stations . | . . . . Recycling Units . | . . . . Scanalyzers . | . . . . Garrison Access . | . . . . Total Hacks 17 | . 5 12 . Successful 10 | . 3 7 . Failed 7 | . 2 5 . Catastrophic 2 | . 1 1 . Database Lockouts . | . . . . Manual . | . . . . Terminals 17 | . 5 12 . Fabricators . | . . . . Repair Stations . | . . . . Recycling Units . | . . . . Scanalyzers . | . . . . Garrison Access . | . . . . Terminal Hacks 10 | . 3 7 . Robot Analysis 2 | . 1 1 . Prototype ID Bank 1 | . . 1 . Level Access Points 1 | . 1 . . Alert Level 1 | . . 1 . Locate Traps 2 | . 1 1 . Reprogram Traps 1 | . . 1 . Dispatch Records 1 | . . 1 . Zone Layout 1 | . . 1 . Fabricator Hacks . | . . . . Repair Station Hacks . | . . . . Recycling Unit Hacks . | . . . . Scanalyzer . | . . . . Garrison Access Hacks . | . . . . Unauthorized Hacks . | . . . . Terminals . | . . . . Fabricators . | . . . . Repair Stations . | . . . . Recycling Units . | . . . . Scanalyzers . | . . . . Garrison Access . | . . . . Data Cores Recovered 1 | . . 1 . Used 1 | . . 1 . Hacking Detections 6 | . 2 4 . Full Trace Events 4 | . 1 3 . Feedback Events 1 | . 1 . . Corruption 1 | . 1 . . Feedback Blocked . | . . . . Robot Schematics Acquired . | . . . . Robots Built . | . . . . Authchips . | . . . . Time . | . . . . Total Robot Build Rating . | . . . . Part Schematics Acquired . | . . . . Parts Built . | . . . . Authchips . | . . . . Time . | . . . . Total Part Build Rating . | . . . . Parts Repaired . | . . . . Time . | . . . . Parts Recycled . | . . . . Recycled Matter . | . . . . Retrieved Matter . | . . . . Retrieved Components . | . . . . Parts Scanalyzed . | . . . . Part Schematics Acquired . | . . . . Parts Damaged . | . . . . Bothacking | -11 -10 -9 -8 ------------ Run | Yrd Mat Mat Mat Used RIF Installer . | . . . . Robots Hacked 1 | . . 1 . Non-combat . | . . . . Combat 1 | . . 1 . Robot Hacks Applied 1 | . . 1 . parse_system 1 | . . 1 . Relay Couplers Released . | . . . . Fabnet Peak Effective % . | . . . . Robots Rewired . | . . . . Allies Hacked . | . . . . Hacks Repelled . | . . . . Allies | -11 -10 -9 -8 -------- Run | Yrd Mat Mat Mat Total Allies . | . . . . Largest Group . | . . . . Highest-Rated Group . | . . . . Highest-Rated Ally . | . . . . Total Orders . | . . . . Ally Attacks . | . . . . Total Damage . | . . . . Kills . | . . . . Allies Corrupted . | . . . . Allies Melted . | . . . . Intel | -11 -10 -9 -8 ------- Run | Yrd Mat Mat Mat Robot Analysis Total 2 | . 1 1 . Derelict Logs Recovered . | . . . . Drone Launches . | . . . . Drone Recoveries . | . . . . Exploration | -11 -10 -9 -8 ------------- Run | Yrd Mat Mat Mat Turns Passed 1162 | 73 296 275 518 Spaces Moved 787 | 49 195 272 271 Core 15 | 8 . . 7 Treads 3 | . . . 3 Legs 186 | 41 50 . 95 Wheels . | . . . . Hover 583 | . 145 272 166 Flight . | . . . . Fastest Speed 50 | 50 56 56 50 Average Speed 88 | 116 99 60 104 Slowest Speed 200 | 200 120 116 160 Overloaded Moves . | . . . . Propulsion Burnouts . | . . . . Robots Hopped . | . . . . Cave-ins Triggered 1 | . . 1 . Exploration Rate (%) 22 | 5 34 34 15 Regions Visited 3 Branch Regions . Pre-discovered Areas . | . . . . Known Exits Taken 1 | . 1 . . Unknown Exits Taken 2 | 1 . 1 . Scrap Searched . | . . . . Spaces Dug 14 | . 5 5 4 Terrain Destroyed 18 | . 5 5 8 Melee 14 | . 5 5 4 Projectile . | . . . . AOE 4 | . . . 4 Terrain Rammed . | . . . . Walls Destroyed . | . . . . Machines Disabled . | . . . . Actions | -11 -10 -9 -8 --------- Run | Yrd Mat Mat Mat Total 1063 | 60 250 335 418 Wait 62 | . 3 11 48 Move 784 | 48 194 271 271 Hop . | . . . . Pick Up 27 | 4 8 6 9 Fast Attach 24 | 6 3 4 11 Attach 8 | 1 2 1 4 Detach 1 | . 1 . . Swap 14 | . 4 5 5 Drop 24 | . 6 9 9 Fire 38 | 1 1 1 35 Melee 81 | . 28 27 26 Ram . | . . . . Kick . | . . . . Crush . | . . . . Escape Stasis . | . . . . Rewire . | . . . . Trap . | . . . . Miscellaneous . | . . . . Route ------- -11/Scrapyard -10/Materials (discovered 3 exits: *Mat x3) -9/Materials -8/Materials History --------- Turn | Location | Event 17 | -11/Scrapyard | Discovered new exit (range 16) 74 | -11/Scrapyard | Entered Materials 317 | -10/Materials | Build established: Mutant 355 | -10/Materials | Discovered new exit (range 12) 360 | -10/Materials | Identified exit to Materials 370 | -10/Materials | Entered another Materials area 370 | -9/Materials | Evolved 2 slots: Propulsion x1, Utility x1 530 | -9/Materials | Crushed by falling debris 634 | -9/Materials | Discovered new exit (range 9) 645 | -9/Materials | Entered another Materials area 645 | -8/Materials | Evolved 2 slots: Propulsion x1, Utility x1 904 | -8/Materials | Lost 4 parts (1p1n1u1w) 1073 | -8/Materials | Core integrity fell below 50% 1129 | -8/Materials | Core integrity fell below 20% 1156 | -8/Materials | Lost 6 parts (1p4n1w) 1163 | -8/Materials | Destroyed by G-47 Trooper with Particle Gun Last Messages --------------- 01113_ Carbon-fiber Leg destroyed. 01114_ K-01 Serf collects debris. 01124_ System corrupted: Particle Cannon failed to cycle. 01124_ Aluminum Leg destroyed. 01125_ K-01 Serf collects debris. 01126_ LRJUIRI0ED 1LX,G1RC|7#%YT>|W#A 01128_ K-01 Serf collects debris. 01133_ Imp. Heat Sink melted. 01133_ G-47 Trooper destroyed. 01133_ K-01 Serf collects debris. 01136_ Overheating: Matter decay (-63). 01136_ Acquired 55 matter. 01137_ K-01 Serf collects debris. 01138_ Acquired Aluminum Leg. 01141_ S|R7RZXZE8QH3KKUOGCWGUKE>W90DZDNKE 01141_ Acquired 18 matter. 01149_ U-05 Engineer destroyed. 01158_ System corrupted: Matter fused (-9). 01158_ Acquired Lgt. Ion Engine. 01161_ Acquired Wheel. Map ----- +----------------------------------------------------+ | ?????????????????????????????????????????????????? | | ?????????????????????????????????????????????????? | | ?????????????????????????????????????????????????? | | ?????????????????????????????????????????????????? | | ?????????????????????????????????????????????????? | | ?????????????????????????????????????????????????? | | ?????????????????????????????????????????????????? | | ?????????????????????????????????????????????????? | | ?????????????????????????????????????????????????? | | ?????????????????????????????????????????????????? | | ?????????????????????????????????????????????????? | | ?????????????????????????????????????????????????? | | ?????????????????????????????????????????????????? | | ?????????????????????????????????????????????????? | | ?????????????????????????????????????????????????? | | ?????????????????????????????????????????????????? | | ??????????????????????????????????#######+???????? | | ??????????????????????????????????# ????????? | | ??????????????????????????????????# ?????????? | | ??????????????????????????????????# ??????????? | | ??????????????????????????????????# #??????????? | | ??????????????????????????????????# #??????????? | | ?????????????????????????###+###??# #??????????? | | ???????????##+############ #### #?????????? | | ???????????# k #??????????? | | ???????????# @ #???#??#???? | | ????????? u % k #?????????## | | ?????????????##+########## #####%##?????????# | | ?????????????????????????##g ######+####???????# | | ??????????????????????????# % #[ %% !#????#??# | | ??????????????????????????# #!*= ! #????##?#! | | ??????????????????????????# +%!%! #???????# | | ??????????????????????????#% # !*! !#???????# | | ??????????????????????????# ###########????#?## | | ?????????????????????????## ###???######?????# | | ?????????????????????????# %######""#"######### | | ?????????????????????????# ^ %[% | | ?????????????????????????# ^ % =! % | | ?????????????????????????# ^ % % = | | ?????????????????????????# ######"######[ | | ?????????????????????????### ###????###??### | | ???????????????????????????# #????????????## ! [ | | ???????????????????????????# #?? ??????????# !![[ | | ??????????????????????????? ?????????????####### | | ??????????????????????????? ?????? ?????#??????? | | ??????????????????????????? ?????? ??#?????????? | | ?????????????????????????? *??????? ???????????? | | ?????????????????????????? ???????????#??#????? | | ??????????????????????????##+????????????????????? | | ???????????????????????????????????#????????????#? | +----------------------------------------------------+ Best States ------------- Heat Dissipation 31 Energy Generation 14 Energy Capacity 265 Matter Stores 300 Matter Capacity 300 Sight Range 18 Terrain Scan Range 16 Terrain Scan Density 85 Additional Mass Support 6 Armor Coverage 150 Evasion (%) 55 Melee Accuracy 18 Target Analysis 5 Recoil Reduction 1 Offensive Hacking 10 Item Schematics ----------------- None Robot Schematics ------------------ None Fabricated ------------ Nothing Alien Tech Used ----------------- None Achievements -------------- Dynamic Key Part-time Excavator Challenges ------------ None Game ------ Seed ControlFocalNanosword Manual? 0 Play Time 00:28:45 Cumulative 6.9 hours Start 2024.09.11 @ 21:28:41 End 2024.09.11 @ 21:57:21 Sessions 1 Manual Loads 0 Difficulty Rogue Special Mode None Game No. 12 Rogue 12 Adventurer 0 Explorer 0 Win Type - Total 0 Types 0/0/0/0/0/0/0/0/0 Lore% 2 Gallery% 14 Achievement% 14 Wizard Run 0 Options --------- Layout 0 ASCII 0 Keyboard 0 Movement Mouse Keybinds 0 Fullscreen 1 Font 18/X11 Map View 38x25 Zoom Use 98% Tactical HUD 1 Map Filters NONE Filters NONE Steam 1 RUN: cd3a7fb2-ffe8-4893-b9c8-3c1f30389d77